bitfinex/quotes_ETHUSD_20241003
["timestamp","ask_amount","ask_price","bid_price","bid_amount"]
[1727936905369,3.34233,2393.6,2392.9,3.34315]
[1727936905370,5.09448111,2393.6,2392.9,3.82938762]
[1727936905570,5.09448111,2393.6,2393.1,3.34293]
[1727936905766,3.34233,2393.6,2393.1,3.34293]
[1727936906071,8.43682111,2393.6,2393.1,3.34293]
[1727936908519,3.34241,2393.5,2393.0,4.16087]
[1727936909190,5.09448111,2393.6,2393.0,0.8178]
[1727936909390,5.09448111,2393.6,2393.1,3.34294]
[1727936909608,3.34233,2393.6,2393.1,3.34294]
[1727936909778,6.68469,2393.6,2393.1,3.34294]
[1727936910414,3.3424,2393.5,2393.0,4.576965]
[1727936912584,3.3424,2393.5,2393.0,1.233895]
[1727936912585,3.34259,2393.4,2393.0,1.233895]
[1727936912795,3.34259,2393.4,2393.0,0.8178]
[1727936914275,3.34294,2393.2,2392.8,0.7549]
[1727936914475,3.34267,2393.3,2392.8,4.09825]
[1727936915090,6.68545,2393.3,2392.8,4.09825]
[1727936915696,3.34267,2393.3,2392.8,4.09825]
[1727936916196,6.68544,2393.3,2392.8,4.09825]
[1727936916917,6.68544,2393.3,2392.8,0.7549]
[1727936917517,1.75215111,2393.5,2392.9,0.8032]
[1727936917721,6.34245,2393.5,2393.1,0.8032]
[1727936917907,6.34245,2393.5,2393.1,4.14614]
[1727936918117,6.34225,2393.6,2393.1,4.14614]
[1727936918988,3.34241,2393.5,2393.1,0.8032]
[1727936919334,3.0,2393.5,2393.1,0.8032]
[1727936919900,6.34239,2393.5,2393.1,0.8032]
[1727936920386,3.0,2393.5,2393.1,4.14613]
[1727936920781,3.0,2393.5,2393.1,0.8032]
[1727936921487,6.68459,2393.6,2393.1,0.8032]
[1727936922330,3.34243,2393.5,2393.1,0.8032]
[1727936922831,3.34243,2393.5,2393.1,0.8777891]
[1727936924413,3.34243,2393.5,2393.1,0.8032]
[1727936924624,6.68491,2393.5,2393.1,0.8032]
[1727936925244,3.34243,2393.5,2393.1,0.8032]
[1727936925413,3.34252,2393.4,2393.1,0.8032]
[1727936926645,3.34243,2393.5,2393.1,0.8032]
[1727936927749,3.34243,2393.5,2393.1,0.83539436]
[1727936928849,6.68489,2393.5,2393.1,0.83539436]
[1727936929057,3.34243,2393.5,2393.1,0.83539436]
[1727936929511,6.68493,2393.5,2393.1,0.83539436]
[1727936930103,3.34243,2393.5,2393.1,0.83539436]
[1727936930412,6.68491,2393.5,2393.1,0.83539436]
[1727936930838,6.68491,2393.5,2393.1,0.8032]
[1727936932136,3.34243,2393.5,2393.1,0.8032]
[1727936932307,3.34259,2393.4,2393.1,0.8032]
[1727936933346,3.34243,2393.5,2393.1,0.8032]
[1727936933850,6.68494,2393.5,2393.1,0.8032]
[1727936936499,3.34243,2393.5,2393.1,0.8032]
[1727936936818,6.68491,2393.5,2393.1,0.8032]
[1727936937148,3.34243,2393.5,2393.1,0.8032]
[1727936937315,3.34256,2393.4,2393.1,0.8032]
[1727936938816,4.63617607,2393.3,2393.1,0.8032]
[1727936940471,6.38832718,2393.3,2393.1,0.8032]
[1727936942036,4.63617607,2393.3,2393.1,0.8032]
[1727936943578,6.38832718,2393.3,2393.1,0.8032]
[1727936945864,6.38832718,2393.3,2392.8,4.17597]
[1727936946097,1.29351607,2393.0,2392.6,4.17634]
[1727936946455,3.04566718,2393.0,2392.6,4.17634]
[1727936946914,6.38875718,2393.0,2392.6,4.17634]
[1727936947054,6.38875718,2393.0,2392.6,0.8327]
[1727936948919,3.04566718,2393.0,2392.6,4.17632]
[1727936949591,3.04566718,2393.0,2392.6,4.17627]
[1727936949993,1.75215111,2393.2,2393.0,3.34301]
[1727936950189,1.75215111,2393.3,2393.0,3.34301]
[1727936950389,1.75215111,2393.4,2393.0,3.34301]
[1727936952006,3.04566718,2393.3,2392.9,4.11981]
[1727936952322,1.29351607,2393.3,2392.9,4.11981]
[1727936952817,3.04566718,2393.3,2392.9,4.11981]
[1727936953014,1.29351607,2393.3,2392.9,4.11981]
[1727936953720,1.29351607,2393.3,2393.0,3.34306]
[1727936954782,1.75215111,2393.4,2393.0,3.343]
[1727936956284,1.75215111,2393.4,2393.1,3.34293]
[1727936956594,1.75215111,2393.8,2393.5,3.3423]
[1727936956798,2.19300179,2393.9,2393.8,4.16566]
[1727936956799,1.75215111,2393.9,2393.8,4.16566]
[1727936957012,6.9732432,2394.1,2393.9,3.34182]
[1727936957013,1.75215111,2394.1,2393.9,3.34182]
[1727936957336,2.19300179,2394.3,2393.8,4.582226]
[1727936957337,1.75215111,2394.3,2394.0,3.34165]
[1727936957483,1.75215111,2394.4,2393.8,4.16553]
[1727936957884,1.75215111,2394.3,2393.8,4.16553]
[1727936958114,5.09343111,2394.3,2393.8,4.16553]
[1727936958484,3.34128,2394.3,2393.8,4.16553]
[1727936958933,1.29351607,2394.2,2393.8,4.16553]
[1727936959294,3.34128,2394.3,2393.8,4.16553]
[1727936961889,3.0,2394.4,2393.8,4.16553]
[1727936962088,3.0,2394.4,2393.8,4.916297]
[1727936962936,6.34116,2394.4,2393.8,4.916297]
[1727936963301,6.34116,2394.4,2393.8,8.258177]
[1727936963927,6.34116,2394.4,2393.8,4.916297]
[1727936964141,9.14215926,2394.4,2393.8,4.916297]
[1727936964325,3.34129,2394.3,2393.8,4.16553]
[1727936964695,3.0,2394.4,2393.9,3.3418]
[1727936965000,6.34125,2394.4,2393.8,4.16553]
[1727936965828,6.14247926,2394.2,2393.6,4.15748]
[1727936965999,3.34162,2394.1,2393.6,4.15748]
[1727936973831,3.34162,2394.1,2393.6,7.49963]
[1727936973832,3.0,2394.1,2393.6,7.49963]
[1727936974139,3.0,2394.1,2393.6,4.15745]
[1727936974434,3.0,2394.1,2393.7,3.34207]
[1727936975918,3.0,2394.1,2393.6,4.15745]
[1727936976849,3.0,2394.1,2393.6,7.49962]
[1727936977014,6.34157,2394.1,2393.6,4.15745]
[1727936977621,3.34171,2394.0,2393.6,0.8153]
[1727936977821,3.34171,2394.0,2393.6,4.15753]
[1727936983216,3.34171,2394.0,2393.6,0.8153]
[1727936985436,6.68349,2394.0,2393.4,4.13513]
[1727936985655,3.34171,2394.0,2393.4,7.91341021]
[1727936986279,3.34171,2394.0,2393.5,3.34237]
[1727936989374,3.34171,2394.0,2393.6,3.34224]
[1727936990064,3.34171,2394.0,2393.4,4.57092021]
[1727936990286,3.34171,2394.0,2393.5,3.34235]
[1727936993943,3.0,2394.1,2393.4,1.22853021]
[1727936994151,6.34163,2394.1,2393.6,3.34218]
[1727936995066,3.0,2394.1,2393.6,4.63511353]
[1727936995242,1.75215111,2394.4,2394.0,3.34167]
[1727936995446,5.09314111,2394.5,2394.0,3.34167]
[1727936995884,6.38607464,2394.5,2394.0,3.34167]
[1727936996380,5.09330111,2394.4,2393.8,6.68372]
[1727936996627,8.43451111,2394.4,2393.8,6.68372]
[1727936996944,5.09330111,2394.4,2393.8,3.34183]
[1727936997154,3.34115,2394.4,2393.8,6.6837]
[1727936997354,3.34115,2394.4,2393.9,3.34178]
[1727936997582,1.75215111,2394.5,2394.0,3.34161]
[1727936997765,5.09315111,2394.5,2394.0,3.34161]
[1727936998988,1.75215111,2394.5,2394.0,3.34166]
[1727936999160,5.09327111,2394.5,2394.0,3.34166]
[1727936999660,6.82369544,2394.6,2394.2,3.34132]
[1727936999661,4.75215111,2394.6,2394.2,3.34132]
[1727936999966,5.53089205,2394.7,2394.2,3.34132]
[1727936999967,4.75215111,2394.7,2394.2,3.34132]
[1727937000168,4.75215111,2394.7,2394.3,3.34125]
[1727937000401,4.75215111,2394.7,2394.4,3.34111]
[1727937001403,4.75215111,2394.6,2394.2,6.73370464]
[1727937001906,4.75215111,2394.6,2394.2,3.3413]
[1727937002267,1.75215111,2394.7,2394.3,0.8065]
[1727937002486,5.09289111,2394.7,2394.3,0.8065]
[1727937002695,5.09289111,2394.7,2394.2,3.34131]
[1727937003967,5.09289111,2394.7,2394.0,3.34157]
[1727937003968,5.09300111,2394.6,2394.0,3.34157]
[1727937004164,3.34106,2394.5,2393.9,0.822]
[1727937004366,4.63390339,2394.3,2393.8,6.68375]
[1727937004616,4.63400339,2394.3,2393.6,3.34218]
[1727937004903,7.97589339,2394.1,2393.6,3.34218]
[1727937005075,4.63426339,2394.1,2393.6,3.34218]
[1727937005264,6.3864145,2394.1,2393.6,3.34218]
[1727937005663,9.7280745,2394.1,2393.6,3.34218]
[1727937005877,5.09378111,2394.1,2393.6,3.34218]
[1727937006101,6.3864145,2394.1,2393.6,3.34218]
[1727937006304,6.3864145,2394.1,2393.6,6.68434]
[1727937006605,6.3864145,2394.1,2393.6,3.34216]
[1727937007380,6.38684742,2394.1,2393.6,3.34216]
[1727937008980,6.38684742,2394.1,2393.5,3.34237]
[1727937008981,3.34169,2394.0,2393.5,3.34237]
[1727937009385,6.38684742,2394.1,2393.5,3.34237]
[1727937009624,9.72850742,2394.1,2393.5,3.34237]
[1727937009829,3.3417,2394.0,2393.5,3.34237]
[1727937009988,5.09385111,2394.0,2393.4,7.55874563]
[1727937010187,5.09385111,2394.0,2393.5,3.34236]
[1727937010722,5.09385111,2394.0,2393.4,4.21630563]
[1727937010880,5.09385111,2394.0,2393.5,3.34236]
[1727937011081,1.75215111,2394.0,2393.6,3.34224]
[1727937011403,6.38684742,2394.1,2393.6,3.34224]
[1727937012133,4.75215111,2394.1,2393.6,3.34215]
[1727937012287,4.75215111,2394.1,2393.7,3.676314]
[1727937012487,4.75215111,2394.1,2393.7,4.447014]
[1727937012824,1.75215111,2394.1,2393.7,4.446944]
[1727937013037,4.75215111,2394.2,2393.7,4.446944]
[1727937013332,1.75215111,2394.2,2393.8,0.7789094]
[1727937013498,5.09356111,2394.2,2393.8,0.7789094]
[1727937013826,3.34141,2394.2,2393.8,0.7789094]
[1727937013995,5.09356111,2394.2,2393.8,0.7789094]
[1727937015596,3.34141,2394.2,2393.8,0.7789094]
[1727937017790,3.34157,2394.1,2393.8,0.7789094]
[1727937018029,3.34157,2394.1,2393.7,0.7707]
[1727937020242,5.09350111,2394.3,2393.8,3.34192]
[1727937020394,3.34135,2394.3,2393.8,3.34192]
[1727937020734,6.68272,2394.3,2393.9,0.74546]
[1727937020894,5.09350111,2394.3,2393.7,7.45472]
[1727937021236,5.09350111,2394.3,2393.8,3.34194]
[1727937021530,5.09349111,2394.3,2393.8,4.087402]
[1727937024251,5.09349111,2394.3,2393.9,0.8200062]
[1727937025501,8.43483111,2394.3,2393.9,0.8200062]
[1727937025746,5.09349111,2394.3,2393.9,0.8200062]
[1727937026695,3.34141,2394.2,2393.9,0.8200062]
[1727937026860,3.34141,2394.2,2393.7,4.11268]
[1727937027350,3.34141,2394.2,2393.7,7.4547]
[1727937028117,3.34141,2394.2,2393.7,7.45471]
[1727937028820,3.34141,2394.2,2393.7,4.11268]
[1727937029017,3.34156,2394.1,2393.7,0.7707]
[1727937029222,3.34156,2394.1,2393.6,3.34216]
[1727937029536,3.34156,2394.1,2393.6,3.676391]
[1727937029537,6.68318,2394.1,2393.6,3.676391]
[1727937029741,3.34156,2394.1,2393.6,3.676391]
[1727937029914,6.68322,2394.1,2393.6,3.676391]
[1727937030112,3.34169,2394.0,2393.5,4.12157]
[1727937030536,3.34169,2394.0,2393.6,3.34222]
[1727937031548,1.75215111,2394.1,2393.6,3.34222]
[1727937031762,9.72822742,2394.2,2393.6,3.34222]
[1727937031974,5.09364111,2394.2,2393.7,3.34202]
[1727937032266,5.09364111,2394.2,2393.8,0.8329]
[1727937032767,1.75215111,2394.2,2393.8,4.17479]
[1727937033266,6.38654742,2394.3,2393.8,4.17479]
[1727937033440,1.75215111,2394.2,2393.8,4.17479]
[1727937034628,6.38654742,2394.3,2393.8,4.17479]
[1727937036546,1.75215111,2394.2,2393.8,4.17479]
[1727937036759,3.34155,2394.1,2393.8,0.8329]
[1727937036973,1.29306631,2393.9,2393.5,0.7704]
[1727937037148,3.34208,2393.8,2393.3,4.11298]
[1727937037488,6.68417,2393.8,2393.3,0.7704]
[1727937037944,3.34208,2393.8,2393.3,4.11301]
[1727937038149,6.68416,2393.8,2393.3,0.7704]
[1727937038374,3.34207,2393.8,2393.3,0.7704]
[1727937039254,3.34211,2393.7,2393.3,0.7704]
[1727937039578,3.34211,2393.7,2393.3,1.2563323]
[1727937039877,3.34207,2393.8,2393.3,1.2563323]
[1727937040446,3.34207,2393.8,2393.3,4.5989723]
[1727937044056,6.34213,2393.7,2393.3,0.7955]
[1727937044257,4.29306631,2393.7,2393.2,3.34267]
[1727937044477,7.63520631,2393.7,2393.2,3.34267]
[1727937045075,4.29306631,2393.7,2393.2,3.34267]
[1727937045267,3.34226,2393.6,2393.2,3.34267]
[1727937046045,3.34226,2393.6,2393.1,4.13841]
[1727937046287,3.34226,2393.6,2393.1,4.13843]
[1727937048161,6.68459,2393.6,2393.1,4.13843]
[1727937048393,3.34226,2393.6,2393.1,4.13843]
[1727937052177,1.29306631,2393.5,2393.1,0.7955]
[1727937052491,4.63551631,2393.5,2393.1,0.7955]
[1727937054596,3.34254,2393.4,2393.1,0.7955]
[1727937054809,3.34245,2393.5,2393.1,0.7955]
[1727937056722,6.6849,2393.5,2393.1,0.7955]
[1727937056887,3.34245,2393.5,2393.1,0.7955]
[1727937057596,6.68491,2393.5,2393.1,0.7955]
[1727937058298,3.34245,2393.5,2393.1,0.7955]
[1727937058995,6.68492,2393.5,2393.1,0.7955]
[1727937059380,3.34245,2393.5,2393.1,0.7955]
[1727937059698,3.34254,2393.4,2393.1,0.7955]
[1727937060602,3.34245,2393.5,2393.1,0.7955]
[1727937060835,6.68492,2393.5,2393.1,0.7955]
[1727937061336,3.34245,2393.5,2393.1,0.7955]
[1727937061509,3.34256,2393.4,2393.1,0.7955]
[1727937064127,6.68497,2393.5,2393.1,0.7955]
[1727937064631,3.34254,2393.4,2393.1,0.7955]
[1727937066092,8.09433111,2393.7,2393.1,0.7955]
[1727937066295,6.34218,2393.7,2393.3,0.7754]
[1727937067040,9.68436,2393.7,2393.3,0.7754]
[1727937068127,6.34218,2393.7,2393.3,1.2286061]
[1727937070207,6.34218,2393.7,2393.3,4.5712661]
[1727937070651,6.34218,2393.7,2393.3,1.2286061]
[1727937072241,9.68435,2393.7,2393.3,1.2286061]
[1727937072426,9.68435,2393.7,2393.4,0.45713361]
[1727937072427,6.34217,2393.7,2393.4,0.45713361]
[1727937072633,6.34203,2393.8,2393.5,0.7537]
[1727937072939,7.28317891,2394.1,2393.7,0.7537]
[1727937073172,5.09379111,2394.1,2393.7,1.497529]
[1727937073462,3.34164,2394.1,2393.8,0.7537]
[1727937073766,1.75215111,2394.2,2393.8,0.7537]
[1727937074063,3.0,2394.1,2393.8,0.7537]
[1727937074241,6.34157,2394.1,2393.8,0.7537]
[1727937074910,3.0,2394.1,2393.8,0.7537]
[1727937075263,3.0,2394.1,2393.9,0.7653]
[1727937078134,6.34157,2394.1,2393.9,0.7653]
[1727937078326,3.0,2394.1,2393.9,0.7653]
[1727937079567,6.34155,2394.1,2393.9,0.7653]
[1727937080625,3.34168,2394.0,2393.9,0.7653]
[1727937080998,3.0,2394.1,2393.9,0.7653]
[1727937081149,6.34156,2394.1,2393.9,0.7653]
[1727937081651,3.34168,2394.0,2393.9,0.7653]
[1727937082526,6.34156,2394.1,2393.9,0.7653]
[1727937083059,3.34168,2394.0,2393.9,0.7653]
[1727937084567,6.34156,2394.1,2393.9,0.7653]
[1727937085440,3.0,2394.1,2393.9,0.7653]
[1727937090362,6.34154,2394.1,2393.9,0.7653]
[1727937092412,6.34145,2394.2,2393.9,0.7653]
[1727937094178,1.75215111,2394.4,2393.9,1.176031]
[1727937094393,5.09300111,2394.6,2394.2,0.7537]
[1727937094597,3.34085,2394.6,2394.3,0.743668]
[1727937094819,6.68178,2394.6,2394.2,0.7537]
[1727937095023,3.34102,2394.5,2394.2,0.7537]
[1727937100299,3.34115,2394.4,2394.2,0.7537]
[1727937101013,6.68239,2394.4,2394.2,0.7537]
[1727937101193,3.34115,2394.4,2394.0,0.7664]
[1727937101987,3.34142,2394.2,2394.0,0.7664]
[1727937103382,1.29306631,2394.1,2393.6,0.8277]
[1727937103538,4.63491631,2393.9,2393.6,0.8277]
[1727937104867,1.29306631,2393.9,2393.6,0.8277]
[1727937105185,4.63488631,2393.9,2393.6,0.8277]
[1727937105488,1.29306631,2393.9,2393.6,0.8277]
[1727937106659,4.63489631,2393.9,2393.6,0.8277]
[1727937107070,1.29306631,2393.9,2393.6,0.8277]
[1727937108573,3.34175,2394.0,2393.6,0.8277]
[1727937108881,3.34175,2394.0,2393.6,4.16993]
[1727937109352,3.34175,2394.0,2393.6,0.8277]
[1727937109763,4.29306631,2394.1,2393.6,0.8277]
[1727937110095,2.18819498,2394.3,2393.9,4.16515]
[1727937110096,4.75215111,2394.3,2393.9,4.16515]
[1727937110295,1.75215111,2394.5,2394.3,0.8234]
[1727937110582,6.38587742,2394.8,2394.3,4.16456]
[1727937110788,9.72656742,2394.8,2394.3,4.16456]
[1727937111291,6.38587742,2394.8,2394.3,4.16456]
[1727937112781,3.0,2394.7,2394.3,4.16456]
[1727937114584,3.0,2394.7,2394.3,4.91516]
[1727937115482,9.72651742,2394.8,2394.3,4.91516]
[1727937115682,6.38585742,2394.8,2394.3,4.91516]
[1727937116184,6.38585742,2394.8,2394.3,1.574]
[1727937116370,1.75215111,2394.7,2394.3,1.574]
[1727937117820,5.09289111,2394.7,2394.3,1.574]
[1727937118223,5.09289111,2394.7,2394.3,0.8234]
[1727937120311,4.63395631,2394.6,2394.3,0.8234]
[1727937122139,1.29306631,2394.6,2394.3,0.8234]
[1727937124912,5.09289111,2394.7,2394.3,0.8234]
[1727937125320,3.34074,2394.7,2394.3,0.8234]
[1727937126124,1.29306631,2394.4,2394.0,0.7936]
[1727937126337,1.29306631,2394.4,2393.4,9.18982812]
[1727937126338,1.29306631,2394.2,2393.7,3.34199]
[1727937126544,4.63448631,2394.2,2393.8,0.8119]
[1727937127079,3.34136,2394.3,2393.8,1.33565347]
[1727937127211,3.34136,2394.3,2393.9,3.34182]
[1727937127415,5.09324111,2394.5,2393.9,3.34182]
[1727937127756,3.34117,2394.4,2393.9,3.34182]
[1727937128532,5.09324111,2394.5,2394.0,3.34167]
[1727937128764,5.09324111,2394.5,2394.1,0.7995]
[1727937130063,1.75215111,2394.6,2394.1,4.14093]
[1727937130271,1.75215111,2394.8,2394.6,3.34078]
[1727937130452,1.75215111,2394.9,2394.6,0.7517]
[1727937130658,6.38550742,2395.0,2394.6,0.7517]
[1727937133438,4.63335631,2395.0,2394.6,0.7517]
[1727937133639,6.38550742,2395.0,2394.6,0.7517]
[1727937133851,3.34044,2394.9,2394.6,0.7517]
[1727937134098,3.04521742,2395.0,2394.6,0.7517]
[1727937134271,1.75215111,2395.1,2394.6,1.495065]
[1727937134455,1.75215111,2395.1,2394.9,0.8046]
[1727937134659,10.8955276,2395.4,2395.0,3.34021]
[1727937134660,1.75215111,2395.4,2395.0,3.34021]
[1727937134847,1.75215111,2395.4,2395.0,4.088731]
[1727937135047,1.75215111,2395.4,2395.1,4.14471]
[1727937135242,1.75215111,2395.5,2395.1,4.14471]
[1727937135441,3.48248597,2395.6,2395.2,3.33999]
[1727937135442,3.04521742,2395.6,2395.2,3.33999]
[1727937135645,1.29306631,2395.6,2395.2,3.33992]
[1727937136075,1.29306631,2395.6,2395.1,0.82638141]
[1727937136276,1.29306631,2395.6,2395.1,4.16653141]
[1727937136477,4.63252631,2395.6,2395.1,4.14475]
[1727937136675,3.3396,2395.5,2395.1,0.8046]
[1727937138622,6.13751845,2395.7,2395.1,0.8046]
[1727937139123,3.33948,2395.6,2395.1,0.8046]
[1727937140026,3.33959,2395.5,2395.1,0.8046]
[1727937144334,6.13751845,2395.7,2395.1,4.14473]
[1727937144493,3.33945,2395.6,2395.1,4.14473]
[1727937149844,3.33945,2395.6,2395.1,0.8046]
[1727937151758,3.33962,2395.5,2395.1,0.8046]
[1727937152959,3.33924,2395.8,2395.2,3.34]
[1727937153126,3.33932,2395.7,2395.3,0.829]
[1727937153563,3.33924,2395.8,2395.3,0.829]
[1727937153758,3.33932,2395.7,2395.3,0.829]
[1727937154125,3.33924,2395.8,2395.3,0.829]
[1727937154346,2.79811845,2395.9,2395.4,0.7517]
[1727937154347,3.33908,2395.9,2395.4,0.7517]
[1727937154551,1.75215111,2396.1,2395.5,0.7517]
[1727937154752,16.6507032,2396.2,2395.7,0.7861]
[1727937154753,16.6506432,2396.2,2395.7,0.7861]
[1727937155027,16.6506732,2396.2,2395.7,0.7861]
[1727937155227,3.33876,2396.1,2395.7,0.7861]
[1727937156730,3.33889,2396.0,2395.7,0.7861]
[1727937157247,3.33869,2396.2,2395.8,0.8259]
[1727937157443,3.33884,2396.1,2395.8,0.8259]
[1727937158124,1.29072339,2396.2,2395.8,0.8259]
[1727937158326,5.09037111,2396.5,2395.8,0.8259]
[1727937158327,4.62968339,2396.0,2395.8,0.8259]
[1727937158562,7.96868339,2396.0,2395.8,0.8259]
[1727937158882,4.62968339,2396.0,2395.8,0.8259]
[1727937159177,3.33896,2396.0,2395.8,0.8259]
[1727937162479,4.62943339,2396.2,2395.8,0.8259]
[1727937163171,3.33879,2396.1,2395.8,0.8259]
[1727937163583,4.62941339,2396.2,2395.8,0.8259]
[1727937163877,3.33877,2396.1,2395.8,0.8259]
[1727937164381,3.33852,2396.3,2395.9,0.7721]
[1727937164534,4.62914339,2396.4,2395.9,0.7721]
[1727937164535,3.33863,2396.2,2395.9,0.7721]
[1727937164735,3.33863,2396.2,2395.9,1.2582654]
[1727937166384,4.62935339,2396.2,2395.9,0.7721]
[1727937166557,3.33876,2396.1,2395.9,0.7721]
[1727937168095,4.62935339,2396.2,2395.9,0.7721]
[1727937168363,3.33875,2396.1,2395.9,0.7721]
[1727937170377,3.33863,2396.2,2395.9,0.7721]
[1727937170772,4.62928339,2396.3,2395.9,0.7721]
[1727937172162,4.62928339,2396.3,2395.9,1.517146]
[1727937173887,1.29072339,2396.3,2395.9,1.517146]
[1727937174087,3.33863,2396.2,2395.9,0.7721]
[1727937174425,4.62954339,2396.1,2395.9,0.7721]
[1727937178532,1.29072339,2396.1,2395.9,0.7721]
[1727937180025,4.62948339,2396.1,2395.9,0.7721]
[1727937181306,1.29072339,2396.1,2395.9,0.7721]
[1727937182618,3.33863,2396.2,2395.9,0.7721]
[1727937182844,7.96791339,2396.3,2395.9,0.7721]
[1727937183208,3.33863,2396.2,2395.9,0.7721]
[1727937184259,4.62927339,2396.3,2395.9,0.7721]
[1727937184811,7.96786339,2396.3,2395.9,0.7721]
[1727937185341,4.62927339,2396.3,2395.9,0.7721]
[1727937185917,3.33855,2396.3,2395.9,0.7721]
[1727937186132,3.33855,2396.3,2395.9,4.11112]
[1727937186333,3.33855,2396.3,2395.9,4.856153]
[1727937190401,1.29072339,2396.2,2395.9,0.7721]
[1727937190533,4.62939339,2396.2,2395.9,0.7721]
[1727937190886,3.33919,2395.8,2395.6,0.8292]
[1727937191049,3.33931,2395.7,2395.2,0.8292]
[1727937191237,3.33946,2395.6,2395.2,1.907205]
[1727937191436,4.62991339,2395.8,2395.2,5.247195]
[1727937191637,4.62991339,2395.8,2395.4,0.8329]
[1727937194684,6.3820645,2395.8,2395.4,0.8329]
[1727937194983,7.96918339,2395.8,2395.4,0.8329]
[1727937195284,9.7213345,2395.8,2395.4,0.8329]
[1727937195482,6.3820645,2395.8,2395.4,0.8329]
[1727937196797,3.33939,2395.7,2395.4,0.8329]
[1727937197106,1.29072339,2395.6,2395.4,0.8329]
[1727937198951,4.63019339,2395.6,2395.4,0.8329]
[1727937199570,1.29072339,2395.6,2395.4,0.8329]
[1727937201697,1.75215111,2395.7,2395.4,0.8329]
[1727937202195,6.3820845,2395.8,2395.4,0.8329]
[1727937202892,1.75215111,2395.7,2395.4,0.8329]
[1727937203197,6.3820845,2395.8,2395.4,0.8329]
[1727937203500,3.33934,2395.7,2395.4,0.8329]
[1727937203710,5.09149111,2395.7,2395.4,0.8329]
[1727937204012,3.33934,2395.7,2395.4,0.8329]
[1727937204821,5.09149111,2395.7,2395.4,0.8329]
[1727937205109,3.33934,2395.7,2395.4,0.8329]
[1727937210110,3.3398,2395.4,2395.1,0.7606]
[1727937210325,4.63062339,2395.3,2395.1,0.7606]
[1727937210621,1.29072339,2395.3,2394.9,0.8242]
[1727937210775,3.3397,2395.5,2395.1,3.34014]
[1727937210967,3.0428745,2395.6,2395.2,4.1592]
[1727937211199,1.75215111,2395.7,2395.4,0.8192]
[1727937211422,6.3820445,2395.8,2395.4,0.8192]
[1727937212231,1.75215111,2395.7,2395.4,0.8192]
[1727937212633,6.3820445,2395.8,2395.4,0.8192]
[1727937212942,3.33932,2395.7,2395.4,0.8192]
[1727937216245,4.62996339,2395.8,2395.4,0.8192]
[1727937216560,4.62996339,2395.8,2395.4,1.569101]
[1727937218845,3.33932,2395.7,2395.4,1.569101]
[1727937220342,5.09128111,2395.9,2395.0,3.3402]
[1727937220343,4.63028339,2395.6,2395.0,3.3402]
[1727937220545,4.63067339,2395.3,2394.9,0.8095]
[1727937220753,4.63041339,2395.5,2395.0,3.34022]
[1727937221041,4.63041339,2395.5,2395.1,0.8095]
[1727937221617,4.63039339,2395.5,2395.1,0.8095]
[1727937221800,7.97007339,2395.5,2395.1,0.8095]
[1727937222847,3.33974,2395.4,2395.1,0.8095]
[1727937223047,3.33991,2395.3,2395.1,0.8095]
[1727937223413,4.63063339,2395.3,2395.1,0.8095]
[1727937226453,1.29072339,2395.3,2395.1,0.8095]
[1727937228653,4.63061339,2395.3,2395.1,0.8095]
[1727937228822,1.29072339,2395.3,2394.9,4.12831]
[1727937229726,6.3824645,2395.5,2395.0,3.34021]
[1727937229999,4.63031339,2395.5,2395.0,3.34021]
[1727937230543,5.09171111,2395.6,2394.9,4.12824]
[1727937230757,1.75215111,2395.6,2395.2,0.7716]
[1727937231058,13.3551577,2395.9,2395.5,0.7716]
[1727937231264,6.3819145,2395.9,2395.5,0.7716]
[1727937233113,1.29072339,2395.7,2395.5,0.7716]
[1727937233313,1.75215111,2395.8,2395.4,3.33973]
[1727937233557,1.29072339,2395.7,2395.4,3.33973]
[1727937234067,1.29072339,2395.7,2395.3,1.455474]
[1727937234363,1.29072339,2395.7,2395.3,4.795324]
[1727937236351,3.0428745,2395.7,2395.3,4.795324]
[1727937236884,3.0428745,2395.7,2395.4,3.33964]
[1727937237240,1.75215111,2395.8,2395.5,3.33958]
[1727937237944,1.75215111,2395.8,2395.4,0.8134964]
[1727937239035,3.0428745,2395.7,2395.3,4.12724]
[1727937239235,3.0428745,2395.7,2395.3,7.46702]
[1727937239443,3.0428745,2395.7,2395.3,4.12724]
[1727937239891,3.0428745,2395.7,2395.3,7.46703]
[1727937241283,3.0428745,2395.7,2395.4,3.33965]
[1727937241647,1.29072339,2395.7,2395.4,3.33965]
[1727937245369,1.75215111,2395.8,2395.7,3.33931]
[1727937245554,4.3850091,2395.9,2395.7,4.10641]
[1727937245555,1.75215111,2395.9,2395.7,4.10641]
[1727937245760,1.75215111,2396.0,2395.7,4.10641]
[1727937245992,7.4543703,2396.1,2396.0,3.33889]
[1727937245993,7.01416202,2396.1,2396.0,3.33889]
[1727937246149,2.63083126,2396.1,2396.0,4.10599]
[1727937246486,1.75215111,2396.3,2396.0,0.7671]
[1727937247497,6.3812345,2396.4,2396.0,0.7671]
[1727937248048,3.0428745,2396.4,2396.0,4.10596]
[1727937248553,3.0428745,2396.4,2396.0,0.7671]
[1727937248777,6.3812245,2396.4,2396.0,0.7671]
[1727937249927,1.29072339,2396.2,2396.0,0.7671]
[1727937251075,1.29072339,2396.2,2396.0,1.18583151]
[1727937256032,1.29072339,2396.2,2396.0,0.7671]
[1727937258097,1.29072339,2396.2,2395.9,3.33892]
[1727937260304,1.29072339,2396.2,2395.8,0.779]
[1727937260932,4.62934339,2396.2,2395.8,0.779]
[1727937262140,4.62934339,2396.2,2395.8,4.11815]
[1727937262969,1.29072339,2396.2,2395.8,4.11815]
[1727937265556,1.29072339,2396.2,2395.9,3.339]
[1727937266454,1.29072339,2396.2,2395.8,7.45723]
[1727937267839,1.29072339,2396.2,2395.9,3.339]
[1727937274353,1.29072339,2396.2,2395.8,4.11808]
[1727937274560,1.29072339,2396.2,2396.0,3.33888]
[1727937276045,1.29072339,2396.2,2395.8,4.11808]